fUST/lending_fUST_20251128
["ID","MTS","AMOUNT","RATE_DAILY","PERIOD"]
[395021412,1764342442778,-500.0,0.00019178,2]
[395021413,1764342442798,-500.0,0.00019178,2]
[395021414,1764342442818,-500.0,0.00019178,2]
[395021415,1764342442838,-500.0,0.00019178,2]
[395021416,1764342442859,-574.55677583,0.00019178,2]
[395021417,1764342442880,-500.0,0.00019178,2]
[395021418,1764342442900,-500.0,0.00019178,2]
[395021419,1764342442922,-500.0,0.00019178,2]
[395021420,1764342442942,-500.0,0.00019178,2]
[395021421,1764342442962,-500.0,0.00019178,2]
[395021422,1764342442981,-500.0,0.00019178,2]
[395021423,1764342443002,-507.26535797,0.00019178,2]
[395021424,1764342443027,-500.0,0.00019178,2]
[395021425,1764342443058,-500.0,0.00019178,2]
[395021426,1764342443078,-500.0,0.00019178,2]
[395021427,1764342443099,-500.0,0.00019178,2]
[395021428,1764342443121,-500.0,0.00019178,2]
[395021429,1764342443140,-270.25772688,0.00019178,2]
[395021430,1764342443160,-2001.4,0.00019178,2]
[395021431,1764342443180,-500.0,0.00019178,2]
[395021432,1764342443200,-500.0,0.00019178,2]
[395021433,1764342443220,-500.0,0.00019178,2]
[395021434,1764342443241,-500.0,0.00019178,2]
[395021435,1764342443261,-500.0,0.00019178,2]
[395021436,1764342443280,-500.0,0.00019178,2]
[395021437,1764342443301,-625.92,0.00019178,2]
[395021438,1764342443323,-500.0,0.00019178,2]
[395021439,1764342443344,-500.0,0.00019178,2]
[395021440,1764342443365,-500.0,0.00019178,2]
[395021441,1764342443386,-500.0,0.00019178,2]
[395021442,1764342443407,-500.0,0.00019178,2]
[395021443,1764342443427,-1534.33,0.00019178,2]
[395021444,1764342443448,-1361.75,0.00019178,2]
[395021445,1764342443468,-500.0,0.00019178,2]
[395021446,1764342443487,-500.0,0.00019178,2]
[395021447,1764342443508,-500.0,0.00019178,2]
[395021448,1764342443529,-2411.21,0.00019178,2]
[395021449,1764342443550,-234.2366626,0.00019178,2]
[395021450,1764342443571,-529.28315059,0.00019178,2]
[395021451,1764342443593,-546.97,0.00019178,2]
[395021452,1764342443615,-500.0,0.00019178,2]
[395021453,1764342443635,-500.0,0.00019178,2]
[395021454,1764342443655,-500.0,0.00019178,2]
[395021455,1764342443674,-2210.08,0.00019178,2]
[395021456,1764342443693,-500.0,0.00019178,2]
[395021457,1764342443714,-500.0,0.00019178,2]
[395021458,1764342443735,-697.85,0.00019178,2]
[395021459,1764342443756,-500.0,0.00019178,2]
[395021460,1764342443776,-500.0,0.00019178,2]
[395021461,1764342443797,-1499.02,0.00019178,2]
[395021462,1764342443818,-500.0,0.00019178,2]
[395021463,1764342443842,-500.0,0.00019178,2]
[395021464,1764342443862,-500.0,0.00019178,2]
[395021465,1764342443884,-561.83,0.00019178,2]
[395021466,1764342443905,-809.17,0.00019178,2]
[395021467,1764342443926,-500.0,0.00019178,2]
[395021468,1764342443947,-500.0,0.00019178,2]
[395021469,1764342443968,-500.0,0.00019178,2]
[395021470,1764342443989,-1141.48,0.00019178,2]
[395021471,1764342444011,-1993.25,0.00019178,2]
[395021472,1764342444032,-500.0,0.00019178,2]
[395021473,1764342444055,-500.0,0.00019178,2]
[395021474,1764342444077,-500.0,0.00019178,2]
[395021475,1764342444098,-500.0,0.00019178,2]
[395021476,1764342444119,-1056.84,0.00019178,2]
[395021477,1764342444140,-1472.36,0.00019178,2]
[395021478,1764342444162,-1870.67,0.00019178,2]
[395021479,1764342444184,-500.0,0.00019178,2]
[395021480,1764342444205,-598.09,0.00019178,2]
[395021481,1764342444225,-500.0,0.00019178,2]
[395021482,1764342444246,-608.62324787,0.00019178,2]
[395021483,1764342444268,-793.11,0.00019178,2]
[395021484,1764342444291,-594.74,0.00019178,2]
[395021485,1764342444315,-500.0,0.00019178,2]
[395021486,1764342444336,-500.0,0.00019178,2]
[395021487,1764342444360,-726.54,0.00019178,2]
[395021488,1764342444383,-2777.71,0.00019178,2]
[395021489,1764342444405,-500.0,0.00019178,2]
[395021490,1764342444427,-500.0,0.00019178,2]
[395021491,1764342444448,-500.0,0.00019178,2]
[395021492,1764342444469,-1086.85,0.00019178,2]
[395021493,1764342444490,-500.0,0.00019178,2]
[395021494,1764342444511,-1149.54,0.00019178,2]
[395021495,1764342444532,-500.0,0.00019178,2]
[395021496,1764342444555,-500.0,0.00019178,2]
[395021497,1764342444576,-553.28,0.00019178,2]
[395021498,1764342444603,-500.0,0.00019178,2]
[395021499,1764342444624,-500.0,0.00019178,2]
[395021500,1764342444644,-546.12967085,0.00019178,2]
[395021501,1764342444665,-409.74606339,0.00019178,2]
[395021502,1764342444685,-748.6,0.00019178,2]
[395021503,1764342444706,-505.54238126,0.00019178,2]
[395021504,1764342444727,-500.0,0.00019178,2]
[395021505,1764342444852,-1301.85,0.00019178,2]
[395021506,1764342444895,-500.0,0.00019178,2]
[395021507,1764342444918,-500.0,0.00019178,2]
[395021508,1764342444944,-500.0,0.00019178,2]
[395021509,1764342444966,-500.0,0.00019178,2]
[395021510,1764342444988,-560.99,0.00019178,2]
[395021511,1764342445008,-554.5106983,0.00019178,2]
[395021512,1764342445030,-500.0,0.00019178,2]
[395021513,1764342445050,-500.0,0.00019178,2]
[395021514,1764342445073,-500.0,0.00019178,2]
[395021515,1764342445094,-500.0,0.00019178,2]
[395021516,1764342445116,-978.68,0.00019178,2]
[395021517,1764342445135,-500.0,0.00019178,2]
[395021518,1764342445155,-500.0,0.00019178,2]
[395021519,1764342445175,-1544.97,0.00019178,2]
[395021520,1764342445195,-1112.62,0.00019178,2]
[395021521,1764342445215,-500.0,0.00019178,2]
[395021522,1764342445236,-1490.25,0.00019178,2]
[395021523,1764342445257,-500.0,0.00019178,2]
[395021524,1764342445278,-955.7,0.00019178,2]
[395021525,1764342445302,-500.0,0.00019178,2]
[395021526,1764342445326,-500.0,0.00019178,2]
[395021527,1764342445348,-1161.75,0.00019178,2]
[395021528,1764342445371,-565.78,0.00019178,2]
[395021529,1764342445392,-500.0,0.00019178,2]
[395021530,1764342445415,-500.0,0.00019178,2]
[395021531,1764342445438,-1727.98,0.00019178,2]
[395021532,1764342445457,-445.79693252,0.00019178,2]
[395021533,1764342445480,-500.0,0.00019178,2]
[395021534,1764342445504,-518.55974466,0.00019178,2]
[395021535,1764342445526,-1230.52,0.00019178,2]
[395021536,1764342445548,-539.12891241,0.00019178,2]
[395021537,1764342445570,-561.99,0.00019178,2]
[395021538,1764342445592,-500.0,0.00019178,2]
[395021539,1764342445618,-500.0,0.00019178,2]
[395021540,1764342445639,-500.0,0.00019178,2]
[395021541,1764342445659,-500.0,0.00019178,2]
[395021542,1764342445680,-2801.42,0.00019178,2]
[395021543,1764342445701,-500.0,0.00019178,2]
[395021544,1764342445723,-500.0,0.00019178,2]
[395021545,1764342445744,-500.0,0.00019178,2]
[395021546,1764342445765,-607.87,0.00019178,2]
[395021547,1764342445785,-809.08,0.00019178,2]
[395021548,1764342445806,-1446.28,0.00019178,2]
[395021549,1764342445830,-725.68,0.00019178,2]
[395021550,1764342445851,-500.0,0.00019178,2]
[395021551,1764342445872,-715.08,0.00019178,2]
[395021552,1764342445893,-500.0,0.00019178,2]
[395021553,1764342445914,-804.31,0.00019178,2]
[395021554,1764342445934,-500.0,0.00019178,2]
[395021555,1764342445956,-500.0,0.00019178,2]
[395021556,1764342445976,-500.0,0.00019178,2]
[395021557,1764342445997,-500.0,0.00019178,2]
[395021558,1764342446017,-1245.74,0.00019178,2]
[395021559,1764342446039,-913.43,0.00019178,2]
[395021560,1764342446060,-982.21,0.00019178,2]
[395021561,1764342446080,-500.0,0.00019178,2]
[395021562,1764342446102,-500.0,0.00019178,2]
[395021563,1764342446123,-500.0,0.00019178,2]
[395021564,1764342446143,-500.0,0.00019178,2]
[395021565,1764342446164,-500.0,0.00019178,2]
[395021566,1764342446186,-450.67347191,0.00019178,2]
[395021567,1764342446207,-1356.94,0.00019178,2]
[395021568,1764342446227,-500.0,0.00019178,2]
[395021569,1764342446249,-500.0,0.00019178,2]
[395021570,1764342446270,-500.0,0.00019178,2]
[395021571,1764342446291,-500.0,0.00019178,2]
[395021572,1764342446313,-500.0,0.00019178,2]
[395021573,1764342446334,-500.0,0.00019178,2]
[395021574,1764342446355,-500.0,0.00019178,2]
[395021575,1764342446376,-824.54,0.00019178,2]
[395021576,1764342446400,-500.0,0.00019178,2]
[395021577,1764342446421,-938.02,0.00019178,2]
[395021578,1764342446443,-500.0,0.00019178,2]
[395021579,1764342446466,-500.0,0.00019178,2]
[395021580,1764342446486,-500.0,0.00019178,2]
[395021581,1764342446508,-500.0,0.00019178,2]
[395021582,1764342446530,-1372.34,0.00019178,2]
[395021583,1764342446550,-1404.73,0.00019178,2]
[395021584,1764342446572,-500.0,0.00019178,2]
[395021585,1764342446594,-500.0,0.00019178,2]
[395021586,1764342446615,-500.0,0.00019178,2]
[395021587,1764342446637,-500.0,0.00019178,2]
[395021588,1764342446659,-1426.05,0.00019178,2]
[395021589,1764342446683,-500.0,0.00019178,2]
[395021590,1764342446705,-500.0,0.00019178,2]
[395021591,1764342446727,-500.0,0.00019178,2]
[395021592,1764342446750,-3606.76,0.00019178,2]
[395021593,1764342446772,-500.0,0.00019178,2]
[395021594,1764342446793,-249.40364,0.00019178,2]
[395021595,1764342446815,-500.0,0.00019178,2]
[395021596,1764342446836,-545.07509586,0.00019178,2]
[395021597,1764342446858,-906.74,0.00019178,2]
[395021598,1764342446880,-500.0,0.00019178,2]
[395021599,1764342446902,-500.0,0.00019178,2]
[395021600,1764342446925,-750.38,0.00019178,2]
[395021601,1764342446947,-500.0,0.00019178,2]
[395021602,1764342446968,-500.0,0.00019178,2]
[395021603,1764342446989,-260.36330431,0.00019178,2]
[395021604,1764342447011,-813.05,0.00019178,2]
[395021605,1764342447032,-646.4,0.00019178,2]
[395021606,1764342447054,-500.0,0.00019178,2]
[395021607,1764342447076,-500.0,0.00019178,2]
[395021608,1764342447098,-607.87,0.00019178,2]
[395021609,1764342447119,-1261.81,0.00019178,2]
[395021610,1764342447140,-500.0,0.00019178,2]
[395021611,1764342447162,-525.19,0.00019178,2]
[395021612,1764342447183,-1266.53,0.00019178,2]
[395021613,1764342447203,-1137.86,0.00019178,2]
[395021614,1764342447226,-500.0,0.00019178,2]
[395021615,1764342447247,-500.0,0.00019178,2]
[395021616,1764342447268,-543.21,0.00019178,2]
[395021617,1764342447579,-500.0,0.00019178,2]
[395021618,1764342447616,-500.0,0.00019178,2]
[395021619,1764342447639,-500.0,0.00019178,2]
[395021620,1764342447660,-500.0,0.00019178,2]
[395021621,1764342447683,-500.0,0.00019178,2]
[395021622,1764342447708,-873.56,0.00019178,2]
[395021623,1764342447729,-500.0,0.00019178,2]
[395021624,1764342447754,-500.0,0.00019178,2]
[395021625,1764342447776,-152.521542,0.00019178,2]
[395021626,1764342447796,-500.0,0.00019178,2]
[395021627,1764342447819,-500.0,0.00019178,2]
[395021628,1764342447841,-500.0,0.00019178,2]
[395021629,1764342447861,-500.0,0.00019178,2]
[395021630,1764342447882,-1162.77,0.00019178,2]
[395021631,1764342447904,-895.78,0.00019178,2]
[395021632,1764342447927,-1064.13,0.00019178,2]
[395021633,1764342447948,-3534.06,0.00019178,2]
[395021634,1764342447970,-500.0,0.00019178,2]
[395021635,1764342447992,-512.17,0.00019178,2]
[395021636,1764342448014,-500.0,0.00019178,2]
[395021637,1764342448035,-500.0,0.00019178,2]
[395021638,1764342448056,-555.62,0.00019178,2]
[395021639,1764342448077,-1743.22,0.00019178,2]
[395021640,1764342448098,-1543.22,0.00019178,2]
[395021641,1764342448119,-500.0,0.00019178,2]
[395021642,1764342448140,-500.0,0.00019178,2]
[395021643,1764342448162,-500.0,0.00019178,2]
[395021644,1764342448192,-500.0,0.00019178,2]
[395021645,1764342448217,-500.0,0.00019178,2]
[395021646,1764342448242,-1401.63,0.00019178,2]
[395021647,1764342448264,-500.0,0.00019178,2]
[395021648,1764342448288,-500.0,0.00019178,2]
[395021649,1764342448312,-500.0,0.00019178,2]
[395021650,1764342448335,-500.0,0.00019178,2]
[395021651,1764342448357,-500.0,0.00019178,2]
[395021652,1764342448380,-500.0,0.00019178,2]
[395021653,1764342448404,-500.0,0.00019178,2]
[395021654,1764342448429,-500.0,0.00019178,2]
[395021655,1764342448450,-500.0,0.00019178,2]
[395021656,1764342448475,-500.0,0.00019178,2]
[395021657,1764342448502,-988.63,0.00019178,2]
[395021658,1764342448526,-218.31989404,0.00019178,2]
[395021659,1764342448551,-500.0,0.00019178,2]
[395021660,1764342448576,-500.0,0.00019178,2]
[395021661,1764342448604,-1372.77,0.00019178,2]
[395021662,1764342448629,-500.0,0.00019178,2]
[395021663,1764342448651,-500.0,0.00019178,2]
[395021664,1764342448675,-500.0,0.00019178,2]
[395021665,1764342448697,-500.0,0.00019178,2]
[395021666,1764342448719,-500.0,0.00019178,2]
[395021667,1764342448741,-500.0,0.00019178,2]
[395021668,1764342448767,-500.0,0.00019178,2]
[395021669,1764342448790,-500.0,0.00019178,2]
[395021670,1764342448813,-179.94616757,0.00019178,2]
[395021671,1764342448839,-500.0,0.00019178,2]
[395021672,1764342448862,-500.0,0.00019178,2]
[395021673,1764342448884,-500.0,0.00019178,2]
[395021674,1764342448907,-500.0,0.00019178,2]
[395021675,1764342448931,-500.0,0.00019178,2]
[395021676,1764342448954,-500.0,0.00019178,2]
[395021677,1764342448979,-500.0,0.00019178,2]
[395021678,1764342449001,-531.13,0.00019178,2]
[395021679,1764342449024,-916.23,0.00019178,2]
[395021680,1764342449051,-500.0,0.00019178,2]
[395021681,1764342449074,-500.0,0.00019178,2]
[395021682,1764342449097,-949.5,0.00019178,2]
[395021683,1764342449119,-1516.47,0.00019178,2]
[395021684,1764342449142,-978.44,0.00019178,2]
[395021685,1764342449164,-500.0,0.00019178,2]
[395021686,1764342449186,-500.0,0.00019178,2]
[395021687,1764342449207,-500.0,0.00019178,2]
[395021688,1764342449229,-1817.24,0.00019178,2]
[395021689,1764342449250,-500.0,0.00019178,2]
[395021690,1764342449271,-888.81,0.00019178,2]
[395021691,1764342449293,-500.0,0.00019178,2]
[395021692,1764342449316,-500.0,0.00019178,2]
[395021693,1764342449338,-500.0,0.00019178,2]
[395021694,1764342449365,-500.0,0.00019178,2]
[395021695,1764342449388,-500.0,0.00019178,2]
[395021696,1764342449412,-500.0,0.00019178,2]
[395021697,1764342449436,-500.0,0.00019178,2]
[395021698,1764342449459,-500.0,0.00019178,2]
[395021699,1764342449481,-1066.09,0.00019178,2]
[395021700,1764342449503,-266.73839531,0.00019178,2]
[395021701,1764342449524,-500.0,0.00019178,2]
[395021702,1764342449545,-1688.77,0.00019178,2]
[395021703,1764342449567,-500.0,0.00019178,2]
[395021704,1764342449588,-500.0,0.00019178,2]
[395021705,1764342449612,-500.0,0.00019178,2]
[395021706,1764342449634,-229.88453074,0.00019178,2]
[395021707,1764342449657,-2410.26,0.00019178,2]
[395021708,1764342449679,-1401.11,0.00019178,2]
[395021709,1764342449701,-500.0,0.00019178,2]
[395021710,1764342449722,-500.0,0.00019178,2]
[395021711,1764342449743,-500.0,0.00019178,2]
[395021712,1764342449764,-500.0,0.00019178,2]
[395021713,1764342449790,-254.67553602,0.00019178,2]
[395021714,1764342449812,-500.0,0.00019178,2]
[395021715,1764342449835,-703.29,0.00019178,2]
[395021716,1764342449855,-742.96,0.00019178,2]
[395021717,1764342449876,-500.0,0.00019178,2]
[395021718,1764342449899,-599.04,0.00019178,2]
[395021719,1764342449921,-421.86406189,0.00019178,2]
[395021720,1764342449945,-500.0,0.00019178,2]
[395021721,1764342449966,-643.27,0.00019178,2]
[395021722,1764342449987,-882.09,0.00019178,2]
[395021723,1764342450009,-1731.37,0.00019178,2]
[395021724,1764342450031,-500.0,0.00019178,2]
[395021725,1764342450053,-500.0,0.00019178,2]
[395021726,1764342450075,-500.0,0.00019178,2]
[395021727,1764342450235,-500.0,0.00019178,2]
[395021728,1764342450256,-500.0,0.00019178,2]
[395021729,1764342450276,-500.0,0.00019178,2]
[395021730,1764342450297,-1216.68,0.00019178,2]
[395021731,1764342450318,-500.0,0.00019178,2]
[395021732,1764342450341,-614.04,0.00019178,2]
[395021733,1764342450361,-500.0,0.00019178,2]
[395021734,1764342450383,-598.88,0.00019178,2]
[395021735,1764342450406,-500.0,0.00019178,2]
[395021736,1764342450427,-500.0,0.00019178,2]
[395021737,1764342450448,-1181.23,0.00019178,2]
[395021738,1764342450469,-500.0,0.00019178,2]
[395021739,1764342450490,-846.95,0.00019178,2]
[395021740,1764342450510,-795.08,0.00019178,2]
[395021741,1764342450531,-600.15,0.00019178,2]
[395021742,1764342450550,-500.0,0.00019178,2]
[395021743,1764342450570,-316.49712125,0.00019178,2]
[395021744,1764342450592,-500.0,0.00019178,2]
[395021745,1764342450614,-778.34,0.00019178,2]
[395021746,1764342450634,-1746.14,0.00019178,2]
[395021747,1764342450664,-500.0,0.00019178,2]
[395021748,1764342450685,-500.0,0.00019178,2]
[395021749,1764342450705,-500.0,0.00019178,2]
[395021750,1764342450726,-624.53,0.00019178,2]
[395021751,1764342450745,-500.0,0.00019178,2]
[395021752,1764342450766,-500.0,0.00019178,2]
[395021753,1764342450787,-500.0,0.00019178,2]
[395021754,1764342450807,-500.0,0.00019178,2]
[395021755,1764342450829,-1038.98,0.00019178,2]
[395021756,1764342450853,-4245.78,0.00019178,2]
[395021757,1764342450873,-446.78341697,0.00019178,2]
[395021758,1764342450895,-2968.82,0.00019178,2]
[395021759,1764342450916,-500.0,0.00019178,2]
[395021760,1764342450937,-834.75,0.00019178,2]
[395021761,1764342450958,-500.0,0.00019178,2]
[395021762,1764342450979,-500.0,0.00019178,2]
[395021763,1764342451000,-574.75,0.00019178,2]
[395021764,1764342451022,-500.0,0.00019178,2]
[395021765,1764342451042,-500.0,0.00019178,2]
[395021766,1764342451063,-3441.83,0.00019178,2]
[395021767,1764342451084,-500.0,0.00019178,2]
[395021768,1764342451105,-5372.61,0.00019178,2]
[395021769,1764342451130,-500.0,0.00019178,2]
[395021770,1764342451154,-500.0,0.00019178,2]
[395021771,1764342451175,-1040.62,0.00019178,2]
[395021772,1764342451195,-500.0,0.00019178,2]
[395021773,1764342451216,-500.0,0.00019178,2]
[395021774,1764342451238,-500.0,0.00019178,2]
[395021775,1764342451264,-648.89,0.00019178,2]
[395021776,1764342451287,-607.98,0.00019178,2]
[395021777,1764342451307,-500.0,0.00019178,2]
[395021778,1764342451329,-500.0,0.00019178,2]
[395021779,1764342451351,-530.7,0.00019178,2]
[395021780,1764342451372,-4510.05,0.00019178,2]
[395021781,1764342451392,-1033.03,0.00019178,2]
[395021782,1764342451413,-611.83456484,0.00019178,2]
[395021783,1764342451434,-500.0,0.00019178,2]
[395021784,1764342451454,-500.0,0.00019178,2]
[395021785,1764342451475,-1314.49,0.00019178,2]
[395021786,1764342451495,-4694.19,0.00019178,2]
[395021787,1764342451517,-500.0,0.00019178,2]
[395021788,1764342451538,-1119.05,0.00019178,2]
[395021789,1764342451561,-1043.6,0.00019178,2]
[395021790,1764342451582,-2206.66,0.00019178,2]
[395021791,1764342451607,-729.42,0.00019178,2]
[395021792,1764342451627,-500.0,0.00019178,2]
[395021793,1764342451648,-2845.76,0.00019178,2]
[395021794,1764342451670,-500.0,0.00019178,2]
[395021795,1764342451692,-500.0,0.00019178,2]
[395021796,1764342451714,-500.0,0.00019178,2]
[395021797,1764342451734,-217.84582171,0.00019178,2]
[395021798,1764342451755,-735.31,0.00019178,2]
[395021799,1764342451775,-500.0,0.00019178,2]
[395021800,1764342451796,-500.0,0.00019178,2]
[395021801,1764342451817,-1994.16,0.00019178,2]
[395021802,1764342451838,-500.0,0.00019178,2]
[395021803,1764342451860,-4281.38,0.00019178,2]
[395021804,1764342451884,-4324.27,0.00019178,2]
[395021805,1764342451906,-500.0,0.00019178,2]
[395021806,1764342451927,-230.00092575,0.00019178,2]
[395021807,1764342451947,-798.85,0.00019178,2]
[395021808,1764342451968,-500.0,0.00019178,2]
[395021809,1764342451989,-545.15,0.00019178,2]
[395021810,1764342452011,-500.0,0.00019178,2]
[395021811,1764342452033,-500.0,0.00019178,2]
[395021812,1764342452054,-500.75,0.00019178,2]
[395021813,1764342452075,-606.27,0.00019178,2]
[395021814,1764342452096,-500.0,0.00019178,2]
[395021815,1764342452117,-786.56,0.00019178,2]
[395021816,1764342452140,-500.0,0.00019178,2]
[395021817,1764342452161,-169.551924,0.00019178,2]
[395021818,1764342452182,-500.0,0.00019178,2]
[395021819,1764342452204,-5021.78,0.00019178,2]
[395021820,1764342452226,-500.0,0.00019178,2]
[395021821,1764342452247,-3178.95,0.00019178,2]
[395021822,1764342452268,-1925.42,0.00019178,2]
[395021823,1764342452289,-500.0,0.00019178,2]
[395021824,1764342452312,-500.0,0.00019178,2]
[395021825,1764342452332,-500.0,0.00019178,2]
[395021826,1764342452353,-500.0,0.00019178,2]
[395021827,1764342452373,-946.44,0.00019178,2]
[395021828,1764342452395,-1909.03,0.00019178,2]
[395021829,1764342452416,-500.0,0.00019178,2]
[395021830,1764342452438,-500.0,0.00019178,2]
[395021831,1764342452460,-1679.04,0.00019178,2]
[395021832,1764342452482,-500.0,0.00019178,2]
[395021833,1764342452504,-705.27,0.00019178,2]
[395021834,1764342452527,-524.95271073,0.00019178,2]
[395021835,1764342452549,-500.0,0.00019178,2]
[395021836,1764342452571,-1126.69,0.00019178,2]
[395021837,1764342452595,-781.11,0.00019178,2]
[395021838,1764342452616,-500.0,0.00019178,2]
[395021839,1764342452637,-500.0,0.00019178,2]
[395021840,1764342452658,-500.0,0.00019178,2]
[395021841,1764342452678,-500.0,0.00019178,2]
[395021842,1764342452698,-888.45,0.00019178,2]
[395021843,1764342452718,-500.0,0.00019178,2]
[395021844,1764342452739,-1351.36,0.00019178,2]
[395021845,1764342452760,-1242.24,0.00019178,2]
[395021846,1764342452780,-500.0,0.00019178,2]
[395021847,1764342452802,-500.0,0.00019178,2]
[395021848,1764342452823,-629.77039569,0.00019178,2]
[395021849,1764342452844,-500.0,0.00019178,2]
[395021850,1764342452866,-500.0,0.00019178,2]
[395021851,1764342452888,-2256.37,0.00019178,2]
[395021852,1764342452909,-500.0,0.00019178,2]
[395021853,1764342452931,-500.0,0.00019178,2]
[395021854,1764342452954,-5773.71,0.00019178,2]
[395021855,1764342452975,-500.0,0.00019178,2]
[395021856,1764342452996,-584.43,0.00019178,2]
[395021857,1764342453016,-2622.89,0.00019178,2]
[395021858,1764342453038,-500.0,0.00019178,2]
[395021859,1764342453059,-500.0,0.00019178,2]
[395021860,1764342453081,-507.55,0.00019178,2]
[395021861,1764342453104,-500.0,0.00019178,2]
[395021862,1764342453125,-500.0,0.00019178,2]
[395021863,1764342453146,-594.06,0.00019178,2]
[395021864,1764342453167,-455.97168778,0.00019178,2]
[395021865,1764342453187,-817.42,0.00019178,2]
[395021866,1764342453209,-500.0,0.00019178,2]
[395021867,1764342453231,-248.10094416,0.00019178,2]
[395021868,1764342454219,150.0,8.705e-05,2]
[395021869,1764342456495,-488.65876507,0.000118,2]
[395021870,1764342456517,-153.0,0.00017534,2]
[395021871,1764342456539,-6474.78905584,0.00019178,2]
[395021872,1764342456559,-500.0,0.00019178,2]
[395021873,1764342456580,-500.0,0.00019178,2]
[395021874,1764342456604,-500.0,0.00019178,2]
[395021875,1764342456624,-500.0,0.00019178,2]
[395021876,1764342456644,-500.0,0.00019178,2]
[395021877,1764342456663,-799.75,0.00019178,2]
[395021878,1764342456683,-23915.04,0.00019178,2]
[395021879,1764342456703,-2544.77,0.00019178,2]
[395021880,1764342456723,-522.96778171,0.00019178,2]
[395021881,1764342456742,-500.0,0.00019178,2]
[395021882,1764342456762,-500.0,0.00019178,2]
[395021883,1764342456783,-500.0,0.00019178,2]
[395021884,1764342456802,-514.12840829,0.00019178,2]
[395021885,1764342456822,-500.0,0.00019178,2]
[395021886,1764342456844,-877.32,0.00019178,2]
[395021887,1764342456864,-774.42,0.00019178,2]
[395021888,1764342456885,-1498.32,0.00019178,2]
[395021889,1764342456919,-1101.55,0.00019178,2]
[395021890,1764342456939,-592.07911704,0.00019178,2]
[395021891,1764342456959,-500.0,0.00019178,2]
[395021892,1764342456980,-500.0,0.00019178,2]
[395021893,1764342457001,-1285.22,0.00019178,2]
[395021894,1764342457022,-500.0,0.00019178,2]
[395021895,1764342457042,-500.0,0.00019178,2]
[395021896,1764342457069,-3495.83,0.00019178,2]
[395021897,1764342457091,-4358.21,0.00019178,2]
[395021898,1764342457111,-537.4426845,0.00019178,2]
[395021899,1764342457130,-1551.06,0.00019178,2]
[395021900,1764342457150,-887.93,0.00019178,2]
[395021901,1764342457170,-500.0,0.00019178,2]
[395021902,1764342457190,-1469.58,0.00019178,2]
[395021903,1764342457211,-1037.67,0.00019178,2]
[395021904,1764342457232,-500.0,0.00019178,2]
[395021905,1764342457253,-500.0,0.00019178,2]
[395021906,1764342457272,-2602.61,0.00019178,2]
[395021907,1764342457293,-500.0,0.00019178,2]
[395021908,1764342457314,-534.94,0.00019178,2]
[395021909,1764342457334,-4621.42,0.00019178,2]
[395021910,1764342457354,-500.0,0.00019178,2]
[395021911,1764342457374,-13369.41,0.00019178,2]